bitfinex-derivatives/quotes_ETHF0:USTF0_20250807
["timestamp","ask_amount","ask_price","bid_price","bid_amount"]
[1754607475256,21.3707,3922.3,3921.9,1.04311073]
[1754607475257,1.9287,3922.2,3922.0,0.8764]
[1754607475456,19.444,3922.1,3922.0,2.5386485]
[1754607475657,19.444,3922.1,3922.0,0.8764]
[1754607475856,21.3727,3922.1,3922.0,5.96035301]
[1754607476051,22.2015,3922.1,3922.0,0.9999]
[1754607476446,21.3727,3922.1,3922.0,0.9999]
[1754607477551,22.2015,3922.1,3922.0,0.9999]
[1754607478156,1.33854,3922.0,3921.9,0.91791073]
[1754607478347,5.64694,3922.0,3921.9,0.91791073]
[1754607479055,4.81814,3922.0,3921.9,0.01831073]
[1754607479450,5.09238421,3922.0,3921.9,0.01831073]
[1754607479757,0.50981,3921.5,3921.0,0.50987]
[1754607479957,4.3084,3921.3,3921.1,3.22466]
[1754607480158,19.443,3921.2,3921.1,6.13650451]
[1754607480358,20.5436,3921.2,3921.1,0.8764]
[1754607480658,19.95285,3921.2,3920.6,2.7148]
[1754607480953,19.95285,3921.2,3919.8,0.18554364]
[1754607480954,1.1006,3920.8,3920.1,0.8764]
[1754607481159,3.2078,3920.4,3920.1,0.8764]
[1754607481359,1.1006,3920.2,3920.1,0.8764]
[1754607481555,1.1619,3920.2,3920.1,0.8764]
[1754607481959,41.9619,3920.2,3920.1,0.8764]
[1754607483462,1.2152,3920.1,3920.0,0.51]
[1754607483651,20.6582,3920.1,3920.0,0.51]
[1754607483848,20.6582,3920.1,3919.7,0.8826]
[1754607483849,3.2078,3920.9,3920.3,2.9371685]
[1754607484056,3.2078,3920.9,3920.8,3.2843]
[1754607484251,63.4538,3920.9,3920.8,4.9465485]
[1754607484553,44.0078,3920.9,3920.8,4.9465485]
[1754607484751,1.2152,3920.8,3919.9,2.7744]
[1754607484953,1.2152,3920.7,3920.6,0.8211]
[1754607485148,0.0613,3920.7,3920.1,0.8211]
[1754607485358,4.423,3920.5,3920.0,0.51]
[1754607485662,3.2078,3920.5,3920.4,2.7744]
[1754607485856,3.2078,3920.5,3920.4,4.4366485]
[1754607485857,21.7643,3920.5,3920.4,4.4366485]
[1754607486161,19.444,3920.8,3920.6,1.33103]
[1754607486350,19.444,3920.8,3920.7,2.7744]
[1754607486551,19.444,3920.8,3920.7,4.4366485]
[1754607487158,19.444,3920.8,3920.7,5.4365485]
[1754607488251,40.8,3920.9,3920.8,3.2843]
[1754607488452,40.8,3920.9,3920.8,4.9465485]
[1754607488658,60.244,3920.9,3920.8,4.9465485]
[1754607489356,60.244,3920.9,3920.8,4.4366485]
[1754607489564,60.243,3920.9,3920.8,4.4366485]
[1754607489763,60.244,3920.9,3920.8,4.4366485]
[1754607490061,19.444,3920.9,3920.8,5.4365485]
[1754607491065,40.8,3921.2,3920.8,2.6621485]
[1754607491262,19.442,3921.1,3921.0,0.50987]
[1754607491466,40.8,3921.2,3921.1,1.9533]
[1754607491667,60.242,3921.2,3921.1,7.85835301]
[1754607491868,62.52584868,3921.2,3921.1,4.24280451]
[1754607492262,60.52844868,3921.2,3921.1,6.19610451]
[1754607492661,62.52484868,3921.2,3921.1,6.19610451]
[1754607492860,62.52484868,3921.2,3921.1,4.24280451]
[1754607493161,62.52484868,3921.2,3921.1,4.42160451]
[1754607493368,63.03469868,3921.2,3921.1,5.24270451]
[1754607493865,63.03469868,3921.2,3921.1,4.24280451]
[1754607494055,60.52844868,3921.2,3920.9,0.9999]
[1754607494368,0.50987,3921.0,3920.9,0.9999]
[1754607494665,21.94527,3921.0,3920.9,0.1114]
[1754607494866,21.94527,3921.0,3919.7,1.7037]
[1754607494867,1.1539,3920.6,3919.7,1.7037]
[1754607495060,1.1539,3920.2,3919.9,0.8211]
[1754607495259,61.3919,3920.1,3920.0,1.3311]
[1754607495457,60.238,3920.1,3920.0,4.9466485]
[1754607495655,60.237,3920.1,3920.0,4.4366485]
[1754607495858,60.52592639,3920.1,3920.0,4.4366485]
[1754607496163,41.08792639,3920.1,3920.0,4.4366485]
[1754607496363,60.52492639,3920.1,3920.0,2.7744]
[1754607496561,61.67882639,3920.1,3920.0,0.8211]
[1754607496962,41.08792639,3920.1,3920.0,2.7744]
[1754607497465,60.52392639,3920.1,3920.0,2.7744]
[1754607497666,61.67782639,3920.1,3920.0,2.7744]
[1754607497868,42.24182639,3920.1,3920.0,2.7744]
[1754607498063,61.3899,3920.1,3920.0,0.8211]
[1754607498367,42.22039491,3920.1,3920.0,1.7037]
[1754607498561,42.22039491,3920.1,3920.0,0.8211]
[1754607499063,62.32618749,3920.1,3920.0,0.8211]
[1754607500266,61.17228749,3920.1,3919.5,0.8211]
[1754607500466,61.17228749,3920.1,3919.6,1.6622485]
[1754607500467,0.51001,3919.9,3919.6,1.6622485]
[1754607500660,21.52418749,3919.8,3919.7,1.7037]
[1754607500969,21.52418749,3919.8,3919.7,2.7744]
[1754607501264,21.52418749,3919.8,3919.7,0.8211]
[1754607502966,0.51005,3919.6,3919.5,0.8211]
[1754607503162,25.24203749,3919.6,3919.5,0.8211]
[1754607503666,26.60572284,3919.6,3919.5,0.8211]
[1754607504469,66.04203749,3919.6,3919.5,0.8211]
[1754607504764,46.31473658,3919.6,3919.5,2.7744]
[1754607504959,64.37708749,3919.6,3919.5,4.4366485]
[1754607505360,41.73728749,3919.6,3919.5,4.4366485]
[1754607505667,61.67733749,3919.6,3919.5,2.4833485]
[1754607505965,62.83123749,3919.6,3919.5,0.8211]
[1754607506160,66.03903749,3919.6,3919.5,0.8211]
[1754607506763,1.66402,3919.2,3919.0,1.9533]
[1754607507071,0.51012,3919.2,3919.1,2.4833485]
[1754607507365,24.99019733,3919.2,3919.1,0.8211]
[1754607507570,25.23287087,3919.2,3919.1,0.8211]
[1754607507768,0.51013,3919.0,3918.9,0.9186134]
[1754607508068,21.78240733,3919.0,3918.9,1.7397134]
[1754607508666,62.58240733,3919.0,3918.9,1.7397134]
[1754607509664,62.80938716,3919.0,3918.9,1.7397134]
[1754607510070,61.65248716,3919.0,3918.9,3.6930134]
[1754607510370,62.80638716,3919.0,3918.9,3.6930134]
[1754607510875,64.17526506,3919.0,3918.9,3.6930134]
[1754607511069,63.94828523,3919.0,3918.9,3.6930134]
[1754607511268,42.85925523,3919.0,3918.9,5.3552619]
[1754607511571,60.91437733,3919.0,3918.9,5.3552619]
[1754607511770,60.91437733,3919.0,3918.9,5.8654019]
[1754607512371,60.91437733,3919.0,3918.9,5.3552619]
[1754607512676,0.69037733,3919.0,3918.9,5.3552619]
[1754607512873,20.11437733,3919.0,3918.9,5.2870619]
[1754607513264,60.91437733,3919.0,3918.9,5.2870619]
[1754607513469,61.13335411,3919.0,3918.9,5.2870619]
[1754607513777,61.13335411,3919.0,3918.9,6.2869619]
[1754607514072,61.42450733,3919.0,3918.9,6.2869619]
[1754607514376,60.91237733,3919.0,3918.9,6.2869619]
[1754607514576,61.13127154,3919.0,3918.9,6.2869619]
[1754607515274,61.13127154,3919.0,3918.9,4.4018619]
[1754607515275,62.22447154,3919.0,3918.9,4.4018619]
[1754607515573,62.22447154,3919.0,3918.9,6.2869619]
[1754607515773,62.00557733,3919.0,3918.9,6.2869619]
[1754607515970,62.22440737,3919.0,3918.9,6.2869619]
[1754607516171,62.00557733,3919.0,3918.9,6.2869619]
[1754607516469,60.91237733,3919.0,3918.9,6.2869619]
[1754607516868,41.49037733,3919.0,3918.9,6.2869619]
[1754607517166,60.90937733,3919.0,3918.9,6.2869619]
[1754607517562,60.90937733,3919.0,3918.9,6.7971019]
[1754607517964,41.49037733,3919.0,3918.9,6.7971019]
[1754607518164,3.2078,3919.3,3919.2,2.776]
[1754607518368,22.6218,3919.3,3919.2,4.4382485]
[1754607518569,22.84060107,3919.3,3919.2,4.4382485]
[1754607518777,23.70110107,3919.3,3919.2,4.4382485]
[1754607518976,22.84060107,3919.3,3919.2,4.4382485]
[1754607519275,63.64060107,3919.3,3919.2,4.4382485]
[1754607520169,63.64060107,3919.3,3919.2,1.6622485]
[1754607520469,63.64060107,3919.3,3919.2,4.4382485]
[1754607520665,64.50110107,3919.3,3919.2,4.4382485]
[1754607520871,63.64060107,3919.3,3919.2,4.4382485]
[1754607521267,64.50110107,3919.3,3919.2,4.4382485]
[1754607521470,65.59430107,3919.3,3919.2,4.4382485]
[1754607521979,65.3755,3919.3,3919.2,4.4382485]
[1754607522882,65.59463509,3919.3,3919.2,2.5531485]
[1754607523880,63.64093509,3919.3,3919.2,2.776]
[1754607524484,64.50143509,3919.3,3919.2,2.776]
[1754607524685,46.18063509,3919.3,3919.2,2.776]
[1754607524882,65.58463509,3919.3,3919.2,0.8909]
[1754607525278,1.956,3919.2,3919.0,0.8909]
[1754607525472,21.3547,3919.1,3919.0,0.8909]
[1754607525680,21.57613509,3919.1,3919.0,0.8909]
[1754607525881,62.37613509,3919.1,3919.0,0.8909]
[1754607526076,62.37383509,3919.1,3919.0,0.8909]
[1754607526777,2.46383,3919.0,3918.9,1.9185134]
[1754607526982,2.6856697,3919.0,3918.9,1.9185134]
[1754607527483,43.4856697,3919.0,3918.9,1.9185134]
[1754607528081,43.4856697,3919.0,3918.9,0.9186134]
[1754607528279,43.4856697,3919.0,3918.9,3.4e-06]
[1754607528577,1.8491,3918.9,3918.8,3.8334]
[1754607528783,2.0686397,3918.9,3918.8,5.6427]
[1754607529084,2.0686397,3918.9,3918.8,4.6428]
[1754607529287,2.06883287,3918.9,3918.8,4.6428]
[1754607529485,2.06883287,3918.9,3918.8,6.3050485]
[1754607529486,0.21973287,3918.9,3918.8,6.3050485]
[1754607529782,40.8,3919.0,3918.9,2.776]
[1754607529978,41.01971782,3919.0,3918.9,4.4382485]
[1754607530191,61.09864463,3919.0,3918.9,4.4382485]
[1754607530885,41.70464463,3919.0,3918.9,4.4382485]
[1754607531086,60.193,3919.0,3918.9,4.4382485]
[1754607531389,60.4128207,3919.0,3918.9,5.4381485]
[1754607531685,60.193,3919.0,3918.9,5.4381485]
[1754607531892,61.0535,3919.0,3918.9,5.4381485]
[1754607532687,60.193,3919.0,3918.9,5.4381485]
[1754607533388,40.8,3919.0,3918.9,7.3049485]
[1754607533982,60.186,3919.0,3918.9,7.3049485]
[1754607535190,40.8,3919.0,3918.9,7.3049485]
[1754607535389,60.182,3919.0,3918.9,7.3049485]
[1754607536288,61.0425,3919.0,3918.9,7.3049485]
[1754607536990,20.2425,3919.0,3918.9,7.3049485]
[1754607537292,23.2391,3919.0,3918.9,7.3049485]
[1754607537494,23.2391,3919.0,3918.9,6.4841485]
[1754607538591,24.14467344,3919.0,3918.9,6.4841485]
[1754607539397,24.14467344,3919.0,3918.9,7.3049485]
[1754607539693,24.14091669,3919.0,3918.9,7.3049485]
[1754607540896,24.98241669,3919.0,3918.9,0.9999]
[1754607541594,24.98241669,3919.0,3918.9,1.811]
[1754607542696,0.90181669,3919.0,3918.9,3.6622]
[1754607542992,20.27281669,3919.0,3918.9,5.5804]
[1754607543186,24.08711669,3919.0,3918.9,5.5804]
[1754607543389,24.08711669,3919.0,3918.9,4.788]
[1754607543595,24.08711669,3919.0,3918.9,0.9999]
[1754607543791,24.08711669,3919.0,3918.9,5.5804]
[1754607544697,24.08711669,3919.0,3918.9,0.9999]
[1754607544897,24.93991669,3919.0,3918.9,0.9999]
[1754607545693,24.07811669,3919.0,3918.9,4.788]
[1754607545892,0.90181669,3919.0,3918.9,2.6621485]
[1754607546095,24.07611669,3919.0,3918.9,4.2464]
[1754607546393,24.92891669,3919.0,3918.9,3.1206]
[1754607546600,21.09771669,3919.0,3918.9,7.2426485]
[1754607546986,22.96121669,3919.0,3918.9,7.2426485]
[1754607547192,24.92791669,3919.0,3918.9,4.788]
[1754607547698,24.92791669,3919.0,3918.9,0.9999]
[1754607549190,1.27536,3918.9,3918.4,0.8111]
[1754607549396,2.7004,3918.5,3918.4,6.2427485]
[1754607549597,22.0514,3918.5,3918.4,6.2427485]
[1754607549789,23.1653,3918.5,3918.4,7.2426485]
[1754607549995,64.65108739,3918.5,3918.4,7.2426485]
[1754607550195,63.9653,3918.5,3918.4,7.2426485]
[1754607550596,64.8181,3918.5,3918.4,0.9999]
[1754607550804,65.72001328,3918.5,3918.4,0.9999]
[1754607551608,65.72001328,3918.5,3918.4,3.2465]
[1754607552606,65.72001328,3918.5,3918.4,1.3729]
[1754607553399,4.6671,3918.3,3918.2,0.9999]
[1754607553705,24.0111,3918.3,3918.2,0.9999]
[1754607553898,24.91301328,3918.3,3918.2,0.9999]
[1754607554605,2.1286,3917.6,3916.8,0.5416]
[1754607554812,3.2078,3917.0,3916.9,4.5805]
[1754607555103,63.3458,3917.0,3916.9,4.5805]
[1754607555308,63.3458,3917.0,3916.9,6.2427485]
[1754607555909,60.138,3917.0,3916.9,6.2427485]
[1754607556104,40.8,3917.0,3916.9,6.2427485]
[1754607556507,60.137,3917.0,3916.9,6.2427485]
[1754607557408,60.9739,3917.0,3916.9,6.2427485]
[1754607557609,62.0878,3917.0,3916.9,4.5805]
[1754607557811,62.0878,3917.0,3916.9,3.7881]
[1754607558006,40.8,3917.0,3916.9,6.2427485]
[1754607558509,60.132,3917.0,3916.9,6.2427485]
[1754607559517,62.0828,3917.0,3916.9,1.3729]
[1754607559811,62.0828,3917.0,3916.9,4.5805]
[1754607560007,62.0828,3917.0,3916.9,3.7881]
[1754607560405,62.59319,3917.0,3916.9,3.7881]
[1754607561614,43.26119,3917.0,3916.9,4.5805]
[1754607562111,46.46899,3917.0,3916.9,3.7881]
[1754607562311,65.79399,3917.0,3916.9,3.7881]
[1754607562707,2.37393,3916.7,3916.6,1.3542]
[1754607562914,23.64773,3916.7,3916.6,1.3729]
[1754607563114,23.64673,3916.7,3916.6,3.0351485]
[1754607563318,23.64673,3916.7,3916.6,5.4503485]
[1754607563518,23.64673,3916.7,3916.6,6.2427485]
[1754607564019,2.37399,3916.3,3916.2,0.8111]
[1754607564319,23.64679,3916.3,3916.2,4.5805]
[1754607564520,23.64679,3916.3,3916.2,6.2427485]
[1754607564913,2.37402,3916.0,3915.9,3.58161715]
[1754607565113,23.1343,3916.0,3915.9,5.49981715]
[1754607565319,21.1835,3916.0,3915.9,7.16206565]
[1754607565716,23.1343,3916.0,3915.9,7.16206565]
[1754607565912,23.1343,3916.0,3915.9,5.24386565]
[1754607566112,23.9871,3916.0,3915.9,3.58161715]
[1754607566418,23.9871,3916.0,3915.9,0.91931715]
[1754607567116,23.9871,3916.0,3915.9,1.73041715]
[1754607567320,64.7871,3916.0,3915.9,1.73041715]
[1754607568423,64.7871,3916.0,3915.9,0.91931715]
[1754607568721,45.4671,3916.0,3915.9,0.91931715]
[1754607569115,64.7771,3916.0,3915.9,1.73041715]
[1754607569316,64.7771,3916.0,3915.9,0.91931715]
[1754607569523,64.7751,3916.0,3915.9,0.91931715]
[1754607569912,2.7004,3915.3,3915.2,4.5805]
[1754607570111,22.51901,3915.3,3915.2,4.5805]
[1754607570311,1.1139,3916.1,3915.3,2.7293]
[1754607570516,4.32478,3916.3,3916.2,4.5805]
[1754607570717,23.63078,3916.3,3916.2,4.5805]
[1754607570918,24.48358,3916.3,3916.2,4.5805]
[1754607571120,41.31048,3916.3,3916.2,2.6623]
[1754607571322,40.8,3916.3,3916.2,6.2427485]
[1754607571521,60.105,3916.3,3916.2,6.2427485]
[1754607571822,40.8,3916.3,3916.2,6.2427485]
[1754607572022,60.104,3916.3,3916.2,6.2427485]
[1754607572822,60.104,3916.3,3916.2,1.6622485]
[1754607573122,60.104,3916.3,3916.2,6.3060485]
[1754607573331,40.8,3916.3,3916.2,6.3060485]
[1754607573828,60.099,3916.3,3916.2,6.3060485]
[1754607574220,62.0461,3916.3,3916.2,3.6177485]
[1754607574426,62.9124,3916.3,3916.2,0.8398]
[1754607574616,62.9124,3916.3,3915.9,0.8163]
[1754607574820,2.42492,3916.0,3915.9,1.4317]
[1754607575021,22.58822,3916.0,3915.9,1.4317]
[1754607575221,19.296,3916.0,3915.9,3.5016485]
[1754607575529,19.295,3916.0,3915.9,3.5016485]
[1754607575728,41.31048,3916.3,3915.9,4.0121685]
[1754607575929,40.8,3916.3,3916.2,4.6438]
[1754607576127,60.093,3916.3,3916.2,6.3060485]
[1754607577330,40.8,3916.3,3916.2,6.3060485]
[1754607577532,60.089,3916.3,3916.2,6.3060485]
[1754607577729,5.23829,3916.2,3916.1,0.9999]
[1754607577922,1.92386,3917.2,3917.1,0.5919]
[1754607578124,19.79836,3917.2,3917.1,4.6438]
[1754607578320,1.27575,3917.7,3917.1,6.2647985]
[1754607578321,0.5103,3917.7,3917.1,6.2647985]
[1754607578527,0.51027,3917.9,3917.7,4.6438]
[1754607578725,1.8791379,3918.0,3917.9,4.6438]
[1754607579028,60.59626,3918.0,3917.9,4.6438]
[1754607579331,61.49114298,3918.0,3917.9,5.7544285]
[1754607579828,60.81131613,3918.0,3917.9,5.7544285]
[1754607580025,41.52531613,3918.0,3917.9,5.7544285]
[1754607580224,61.48667308,3918.0,3917.9,5.7544285]
[1754607580820,61.27161695,3918.0,3917.9,5.7544285]
[1754607581022,61.80721695,3918.0,3917.9,5.7544285]
[1754607581426,61.27161695,3918.0,3917.9,5.7544285]
[1754607581834,60.59126,3918.0,3917.9,5.7544285]
[1754607582533,61.80769787,3918.0,3917.9,5.7544285]
[1754607583034,60.59126,3918.0,3917.9,5.7544285]
[1754607583734,61.12686,3918.0,3917.9,5.7544285]
[1754607584036,61.80786392,3918.0,3917.9,5.7544285]
[1754607584336,61.80787965,3918.0,3917.9,5.7544285]
[1754607584727,60.59126,3918.0,3917.9,5.7544285]
[1754607584923,60.07,3918.0,3917.9,5.7544285]
[1754607586737,60.07,3918.0,3917.9,6.7543285]
[1754607587434,60.06,3918.0,3917.9,6.7543285]
[1754607587836,60.5956,3918.0,3917.9,4.7897285]
[1754607588031,60.5956,3918.0,3917.9,2.9554]
[1754607588236,60.5956,3918.0,3917.9,5.6437]
[1754607588436,60.5956,3918.0,3917.9,0.9999]
[1754607588737,60.5956,3918.0,3917.9,4.1037]
[1754607589036,60.5956,3918.0,3917.9,2.9554]
[1754607589440,60.5956,3918.0,3917.9,2.4316]
[1754607589739,60.899,3918.0,3917.9,0.9999]
[1754607590838,1.74582,3917.5,3917.4,0.8398]
[1754607591039,1.74582,3917.5,3917.4,3.8275]
[1754607591040,21.53142,3917.5,3917.4,3.8275]
[1754607591236,21.53142,3917.5,3917.4,5.6437]
[1754607591636,21.53142,3917.5,3917.4,4.6438]
[1754607592236,21.53142,3917.5,3917.3,0.9999]
[1754607592442,0.51031,3917.6,3917.4,1.8343285]
[1754607592741,0.51031,3917.6,3917.5,3.8275]
[1754607592938,19.75331,3917.6,3917.5,4.6438]
[1754607593242,60.55331,3917.6,3917.5,4.6438]
[1754607593644,41.31031,3917.6,3917.5,4.6438]
[1754607593845,60.042,3917.6,3917.5,4.6438]
[1754607594550,60.042,3917.6,3917.5,5.7544285]
[1754607595443,60.5776,3917.6,3917.5,5.7544285]
[1754607595636,41.3356,3917.6,3917.5,5.7544285]
[1754607595832,60.879,3917.6,3917.5,1.9555]
[1754607596038,60.879,3917.6,3917.5,0.8398]
[1754607596234,60.872,3917.6,3917.5,0.8398]
[1754607596537,60.5686,3917.6,3917.5,0.8398]
[1754607597446,60.5686,3917.6,3917.5,2.58]
[1754607597647,60.5686,3917.6,3917.5,3.1038]
[1754607599246,40.8,3917.6,3917.5,4.6438]
[1754607599446,60.027,3917.6,3917.5,5.7544285]
[1754607599946,60.024,3917.6,3917.5,5.7544285]
[1754607600350,0.51029,3917.8,3917.5,3.4603485]
[1754607600645,19.221,3917.7,3917.6,3.7663285]
[1754607600839,61.2565,3917.7,3917.6,2.6557]
[1754607601039,61.2565,3917.7,3917.6,4.6061285]
[1754607601241,60.021,3917.7,3917.6,5.7544285]
[1754607601752,40.8,3917.7,3917.6,5.7544285]
[1754607602447,40.8,3917.7,3917.5,0.51032]
[1754607602448,1.0,3919.0,3918.8,1.1975785]
[1754607602743,20.48939,3918.9,3918.6,0.8167]
[1754607602942,2.25343,3918.3,3918.2,3.7125]
[1754607603137,22.70783,3918.3,3918.2,3.7125]
[1754607603346,63.21989251,3918.3,3918.2,4.5531]
[1754607604049,61.96619251,3918.3,3918.2,4.5531]
[1754607604247,61.7439,3918.3,3918.2,4.5531]
[1754607604548,62.49326045,3918.3,3918.2,4.5531]
[1754607604734,62.271,3918.3,3918.2,5.553]
[1754607605142,62.49326373,3918.3,3918.2,5.553]
[1754607605342,60.014,3918.3,3918.2,5.553]
[1754607605741,60.7183,3918.3,3918.2,5.553]
[1754607606042,61.46765221,3918.3,3918.2,0.9999]
[1754607606247,62.45284936,3918.3,3918.2,0.9999]
[1754607606443,62.15034936,3918.3,3918.2,0.9999]
[1754607606644,62.15034936,3918.3,3918.2,5.553]
[1754607607240,62.45284936,3918.3,3918.2,0.9999]
[1754607607844,1.7432,3917.5,3917.4,2.6496]
[1754607608153,21.97762,3917.5,3917.4,3.7125]
[1754607608445,22.66031715,3917.5,3917.4,3.2500785]
[1754607608645,22.88264625,3917.5,3917.4,3.2500785]
[1754607608848,63.68264625,3917.5,3917.4,3.2500785]
[1754607609049,63.68264625,3917.5,3917.4,4.3129785]
[1754607609746,63.68264625,3917.5,3917.4,1.4171785]
[1754607609948,63.68264625,3917.5,3917.4,4.3129785]
[1754607610151,63.68264625,3917.5,3917.4,5.1535785]
[1754607610349,63.68264625,3917.5,3917.4,0.8167]
[1754607610648,63.98514625,3917.5,3917.4,0.8167]
[1754607610853,63.68264625,3917.5,3917.4,0.8167]
[1754607611046,63.68264625,3917.5,3917.4,1.8796]
[1754607611247,63.68264625,3917.5,3917.4,4.5531]
[1754607611748,0.5271,3917.2,3916.2,1.0629]
[1754607611946,0.51042,3916.8,3916.7,1.8329]
[1754607612150,21.43412,3916.8,3916.7,0.8167]
[1754607612350,22.33924859,3916.8,3916.7,0.8167]
[1754607612653,1.72105,3916.5,3916.4,0.8167]
[1754607612856,21.43215,3916.5,3916.4,1.953]
[1754607613049,21.43215,3916.5,3916.4,0.8167]
[1754607613257,22.11596861,3916.5,3916.4,0.8167]
[1754607613557,22.11596861,3916.5,3915.3,0.5106]
[1754607613558,0.51057,3915.7,3915.6,4.5531]
[1754607613746,19.69257,3915.7,3915.6,4.5531]
[1754607613946,19.69257,3915.7,3915.6,5.1535785]
[1754607614149,21.43027,3915.7,3915.6,5.1535785]
[1754607614350,19.9086,3915.7,3915.6,5.1535785]
[1754607614555,19.182,3915.7,3915.6,5.1535785]
[1754607614949,59.982,3915.7,3915.6,5.1535785]
[1754607615152,40.8,3915.7,3915.6,5.1535785]
[1754607615347,18.3159,3915.7,3915.6,5.1535785]
[1754607616258,59.1159,3915.7,3915.6,5.1535785]
[1754607616451,59.1159,3915.7,3915.6,0.6004785]
[1754607616653,62.35975,3915.7,3915.6,5.1535785]
[1754607617651,62.35975,3915.7,3915.6,2.5534785]
[1754607617858,63.24295,3915.7,3915.6,1.953]
[1754607618058,63.24295,3915.7,3915.6,0.8167]
[1754607618259,2.33249,3915.4,3915.3,3.7364]
[1754607618462,23.37769,3915.4,3915.3,3.7364]
[1754607618664,5.09089,3915.4,3915.3,1.7367785]
[1754607618959,0.51065,3915.0,3914.9,4.5531]
[1754607619160,20.96995,3915.0,3914.9,4.5531]
[1754607619361,23.37775,3915.0,3914.9,5.1535785]
[1754607619657,1.23735,3914.3,3914.2,3.7125]
[1754607619858,20.40435,3914.3,3914.2,3.7125]
[1754607620058,20.40435,3914.3,3914.2,4.3129785]
[1754607620059,61.20435,3914.3,3914.2,4.3129785]
[1754607620455,62.01205,3914.3,3914.2,4.3129785]
[1754607620653,62.01205,3914.3,3914.2,3.7125]
[1754607620853,63.07955,3914.3,3914.2,4.3129785]
[1754607621061,63.96275,3914.3,3914.2,3.2500785]
[1754607621361,63.96275,3914.3,3912.8,1.27731]
[1754607621362,4.20789,3913.9,3913.8,2.8958]
[1754607621566,23.37089,3913.9,3913.8,3.7364]
[1754607621866,23.37089,3913.9,3913.8,5.1535785]
[1754607622363,24.25409,3913.9,3913.8,0.6004785]
[1754607622564,24.25409,3913.9,3913.8,1.4138]
[1754607624161,24.25409,3913.9,3913.8,0.8167]
[1754607624360,0.51082,3913.7,3913.5,2.7202]
[1754607624556,3.14042,3913.7,3913.6,4.5531]
[1754607624764,21.7856,3913.7,3913.6,5.1535785]
[1754607625161,22.8531,3913.7,3913.6,5.1535785]
[1754607625467,23.7363,3913.7,3913.6,3.2500785]
[1754607625668,23.7363,3913.7,3913.6,1.4138]
[1754607625961,23.7363,3913.7,3912.9,0.92002198]
[1754607625962,4.20799,3913.1,3913.0,1.66]
[1754607626173,23.7343,3913.1,3912.9,0.92002198]
[1754607626371,3.6971,3913.0,3912.9,0.92002198]
[1754607626561,22.8491,3913.0,3912.9,4.63252198]
[1754607626768,0.51102,3912.1,3912.0,1.4138]
[1754607626966,19.151,3912.1,3912.0,1.8329]
[1754607627160,1.0675,3912.4,3912.3,0.6966]
[1754607627365,2.8894,3913.2,3913.1,4.5531]
[1754607627560,19.149,3913.2,3913.1,2.6735]
[1754607627773,21.7786,3913.2,3913.1,2.6735]
[1754607627971,19.149,3913.2,3913.1,2.6735]
[1754607628167,19.149,3913.2,3913.1,4.5531]
[1754607628464,37.5837,3913.7,3913.1,4.5531]
[1754607628465,0.51083,3913.6,3913.1,2.6496]
[1754607628671,1.60618,3913.3,3913.2,4.0139]
[1754607628871,3.14048,3913.3,3913.2,4.5531]
[1754607629071,4.02368,3913.3,3913.2,3.7125]
[1754607629265,4.02368,3913.3,3913.2,0.8167]
[1754607629461,4.20801,3913.0,3912.9,4.7124]
[1754607629768,24.23921,3913.0,3912.9,0.9999]
[1754607629971,2.33285,3912.7,3912.6,1.4138]
[1754607630268,24.23725,3912.7,3912.4,1.9035]
[1754607630472,0.5111,3911.6,3911.4,1.9035]
[1754607630667,0.51108,3911.7,3911.5,1.9035]
[1754607630863,19.144,3912.1,3911.6,1.9035]
[1754607631072,0.51104,3912.0,3911.8,1.0629]
[1754607631371,0.51104,3912.0,3911.9,0.8406]
[1754607631570,0.51104,3912.0,3911.9,1.9134]
[1754607632272,0.51106,3911.9,3911.5,0.51109]
[1754607632475,0.51098,3912.5,3912.0,0.51103]
[1754607632676,1.27738,3912.7,3911.4,0.51111]
[1754607632970,0.51097,3912.6,3912.4,0.8348]
[1754607633267,0.51095,3912.7,3912.5,2.15867]
[1754607633477,0.51093,3912.8,3912.5,0.51097]
[1754607633775,0.51093,3912.8,3912.7,1.6477]
[1754607634170,0.51093,3912.8,3912.7,2.7205]
[1754607634567,0.511,3912.3,3912.2,2.7205]
[1754607634870,1.3586,3912.3,3912.2,2.7205]
[1754607635173,2.4515,3912.3,3912.2,2.8475]
[1754607635772,3.3286,3912.3,3912.2,0.127]
[1754607636075,22.4636,3912.3,3912.2,0.127]
[1754607636868,0.51113,3911.4,3910.1,2.7205]
[1754607637071,4.09523,3912.0,3911.0,0.8129]
[1754607637072,19.64513,3911.3,3911.0,0.8129]
[1754607637263,19.64513,3911.3,3911.2,2.7205]
[1754607637469,2.8176,3911.2,3911.1,0.0036]
[1754607638068,19.64212,3911.4,3911.2,1.9076]
[1754607638269,19.64212,3911.4,3911.3,2.7205]
[1754607638576,21.58262,3911.4,3911.3,2.7205]
[1754607638772,22.45972,3911.4,3911.1,0.0036]
[1754607638972,0.51114,3911.2,3911.1,0.0036]
[1754607639274,3.32874,3911.2,3911.1,0.0036]
[1754607640269,3.32874,3911.2,3910.8,1.9076]
[1754607640470,1.9405,3911.1,3911.0,2.7205]
[1754607640672,0.51117,3911.0,3910.9,2.7205]
[1754607640979,1.9405,3910.9,3910.8,1.8893]
[1754607641174,1.9405,3910.9,3910.8,2.7241]
[1754607641877,2.8176,3910.9,3910.8,0.0036]
[1754607642072,2.8176,3910.9,3910.8,2.7241]
[1754607642378,0.51117,3911.0,3910.9,0.8129]
[1754607642580,19.63416,3911.1,3910.8,0.51479]
[1754607642876,1.0929,3912.1,3911.5,0.5111]
[1754607643073,19.9716,3912.0,3910.8,0.0036]
[1754607643274,0.67376729,3911.9,3911.1,1.6477]
[1754607643475,0.67376729,3911.9,3911.4,1.0728]
[1754607643677,0.51113,3911.4,3911.2,2.7205]
[1754607643871,2.45163,3911.3,3911.2,1.0728]
[1754607644083,1.7247,3911.0,3910.4,1.0728]
[1754607644376,0.51123,3910.6,3910.4,0.8129]